[Event "*** Titled Tuesday Blitz"]
[Site "Chess.com"]
[Date "2020.05.05"]
[Round "4"]
[White "ChessTraining77"]
[Black "Quattroporte300"]
[Result "1-0"]
[WhiteElo "2531"]
[BlackElo "2319"]
[TimeControl "180+1"]
[EndTime "10:41:28 PDT"]
[Termination "ChessTraining77 won on time"]

1. e4 {[%clk 0:03:00.9]} 1... e5 {[%clk 0:02:56.8]} 2. Nf3 {[%clk 0:03:00.7]}
2... Nc6 {[%clk 0:02:56.9]} 3. Bb5 {[%clk 0:02:58.5]} 3... a6 {[%clk 0:02:57.1]}
4. Ba4 {[%clk 0:02:58.3]} 4... Nf6 {[%clk 0:02:57.1]} 5. O-O {[%clk 0:02:58.3]}
5... Be7 {[%clk 0:02:57]} 6. Re1 {[%clk 0:02:58.2]} 6... b5 {[%clk 0:02:56.9]}
7. Bb3 {[%clk 0:02:58.2]} 7... O-O {[%clk 0:02:56.6]} 8. d4 {[%clk 0:02:58]}
8... d6 {[%clk 0:02:54]} 9. c3 {[%clk 0:02:58.1]} 9... Bg4 {[%clk 0:02:52]} 10.
Be3 {[%clk 0:02:57.9]} 10... Bh5 {[%clk 0:02:50.5]} 11. Nbd2 {[%clk 0:02:52.6]}
11... Re8 {[%clk 0:02:27.4]} 12. h3 {[%clk 0:02:51.1]} 12... h6 {[%clk
0:02:23.3]} 13. a3 {[%clk 0:02:41.4]} 13... Qd7 {[%clk 0:02:17.6]} 14. Bc2
{[%clk 0:02:36.6]} 14... Bf8 {[%clk 0:02:12.1]} 15. Qb1 {[%clk 0:02:30.1]} 15...
Rad8 {[%clk 0:01:36.9]} 16. b4 {[%clk 0:01:52.4]} 16... Bg6 {[%clk 0:01:19.3]}
17. d5 {[%clk 0:01:48.2]} 17... Ne7 {[%clk 0:01:07.5]} 18. c4 {[%clk 0:01:45.2]}
18... c6 {[%clk 0:00:58.7]} 19. dxc6 {[%clk 0:01:29.3]} 19... Nxc6 {[%clk
0:00:54.6]} 20. Nh4 {[%clk 0:01:23.2]} 20... Bh7 {[%clk 0:00:52]} 21. Nf5 {[%clk
0:01:22.7]} 21... Rc8 {[%clk 0:00:47.8]} 22. cxb5 {[%clk 0:01:17.5]} 22... axb5
{[%clk 0:00:47.4]} 23. Bd3 {[%clk 0:01:16.2]} 23... Rb8 {[%clk 0:00:43.8]} 24.
Nf1 {[%clk 0:01:06.9]} 24... Ne7 {[%clk 0:00:41.8]} 25. N1g3 {[%clk 0:01:04.7]}
25... Bxf5 {[%clk 0:00:36.3]} 26. Nxf5 {[%clk 0:00:54.9]} 26... Nxf5 {[%clk
0:00:36.4]} 27. exf5 {[%clk 0:00:54.8]} 27... d5 {[%clk 0:00:36.9]} 28. g4
{[%clk 0:00:53.7]} 28... e4 {[%clk 0:00:33.4]} 29. Be2 {[%clk 0:00:52.5]} 29...
Bd6 {[%clk 0:00:29.4]} 30. Qc1 {[%clk 0:00:44.9]} 30... Bc7 {[%clk 0:00:25.8]}
31. Bf4 {[%clk 0:00:37.7]} 31... Rbc8 {[%clk 0:00:22.7]} 32. Qd2 {[%clk
0:00:35.7]} 32... Bxf4 {[%clk 0:00:19.3]} 33. Qxf4 {[%clk 0:00:35.1]} 33... d4
{[%clk 0:00:19.4]} 34. Rad1 {[%clk 0:00:34.3]} 34... d3 {[%clk 0:00:18.7]} 35.
Bf1 {[%clk 0:00:34.4]} 35... Qd4 {[%clk 0:00:16.1]} 36. Bg2 {[%clk 0:00:31.8]}
36... Qc3 {[%clk 0:00:14.5]} 37. h4 {[%clk 0:00:26.3]} 37... Qxa3 {[%clk
0:00:13.6]} 38. g5 {[%clk 0:00:25.8]} 38... Nd5 {[%clk 0:00:13.2]} 39. Qg4
{[%clk 0:00:24.6]} 39... hxg5 {[%clk 0:00:08.4]} 40. hxg5 {[%clk 0:00:22.7]}
40... Nc3 {[%clk 0:00:05.9]} 41. Re3 {[%clk 0:00:20]} 41... Ne2+ {[%clk
0:00:05.7]} 42. Kh2 {[%clk 0:00:19.3]} 42... Qxb4 {[%clk 0:00:05.6]} 43. Rh1
{[%clk 0:00:17.4]} 43... Qd6+ {[%clk 0:00:04.8]} 44. Kh3 {[%clk 0:00:16.5]}
44... Nf4+ {[%clk 0:00:05]} 45. Kh4 {[%clk 0:00:15.5]} 45... Nxg2+ {[%clk
0:00:04.8]} 46. Qxg2 {[%clk 0:00:15.5]} 46... Qf4+ {[%clk 0:00:05.1]} 47. Qg4
{[%clk 0:00:15.3]} 47... Qxg4+ {[%clk 0:00:05.5]} 48. Kxg4 {[%clk 0:00:15.4]}
48... d2 {[%clk 0:00:05.9]} 49. Reh3 {[%clk 0:00:13.1]} 49... f6 {[%clk
0:00:04.1]} 50. gxf6 {[%clk 0:00:12.6]} 50... Kf7 {[%clk 0:00:02.9]} 51. fxg7
{[%clk 0:00:11.7]} 51... Rc4 {[%clk 0:00:02.1]} 52. Kg5 {[%clk 0:00:11.1]} 52...
e3 {[%clk 0:00:02]} 53. Rh8 {[%clk 0:00:10.7]} 1-0

[Event "*** Titled Tuesday Blitz"]
[Site "Chess.com"]
[Date "2020.05.05"]
[Round "4"]
[White "vladimirdamjanovic"]
[Black "Matibar"]
[Result "0-1"]
[WhiteElo "2609"]
[BlackElo "2807"]
[TimeControl "180+1"]
[EndTime "10:41:30 PDT"]
[Termination "Matibar won on time"]

1. d4 {[%clk 0:03:00.9]} 1... Nf6 {[%clk 0:02:58.7]} 2. c4 {[%clk 0:03:00.3]}
2... b6 {[%clk 0:02:57.5]} 3. Nc3 {[%clk 0:02:58.2]} 3... Bb7 {[%clk 0:02:57.6]}
4. f3 {[%clk 0:02:58.3]} 4... Nc6 {[%clk 0:02:55.3]} 5. d5 {[%clk 0:02:54.1]}
5... Ne5 {[%clk 0:02:54.9]} 6. e4 {[%clk 0:02:54.8]} 6... e6 {[%clk 0:02:48.5]}
7. f4 {[%clk 0:02:45.9]} 7... Ng6 {[%clk 0:02:47.5]} 8. e5 {[%clk 0:02:46.4]}
8... Ng8 {[%clk 0:02:45.6]} 9. Nf3 {[%clk 0:02:42.8]} 9... Bb4 {[%clk
0:02:45.1]} 10. h4 {[%clk 0:02:31.8]} 10... Nh6 {[%clk 0:02:31.2]} 11. Bd3
{[%clk 0:02:12.5]} 11... Ne7 {[%clk 0:02:28.4]} 12. Be4 {[%clk 0:02:09.5]} 12...
Nef5 {[%clk 0:02:06.1]} 13. Rh3 {[%clk 0:01:53.7]} 13... Qe7 {[%clk 0:01:52.8]}
14. d6 {[%clk 0:01:42.2]} 14... cxd6 {[%clk 0:01:48.4]} 15. Bxb7 {[%clk
0:01:41.8]} 15... Rb8 {[%clk 0:01:49]} 16. Be4 {[%clk 0:01:37.9]} 16... dxe5
{[%clk 0:01:49.3]} 17. fxe5 {[%clk 0:01:37.6]} 17... Qc5 {[%clk 0:01:49.6]} 18.
Bxh6 {[%clk 0:01:17.8]} 18... Nxh6 {[%clk 0:01:47.6]} 19. Qd4 {[%clk 0:01:18.1]}
19... Qxd4 {[%clk 0:01:41.8]} 20. Nxd4 {[%clk 0:01:19]} 20... Ng4 {[%clk
0:01:42.3]} 21. Nf3 {[%clk 0:01:11.5]} 21... Rc8 {[%clk 0:01:41.9]} 22. Bd3
{[%clk 0:01:07.4]} 22... Bxc3+ {[%clk 0:01:37.9]} 23. bxc3 {[%clk 0:01:06.6]}
23... Rc5 {[%clk 0:01:38.8]} 24. Ke2 {[%clk 0:00:36.6]} 24... Nxe5 {[%clk
0:01:38.4]} 25. Nxe5 {[%clk 0:00:35]} 25... Rxe5+ {[%clk 0:01:39.3]} 26. Kd2
{[%clk 0:00:35.5]} 26... Ke7 {[%clk 0:01:37.6]} 27. Re3 {[%clk 0:00:29.2]} 27...
Ra5 {[%clk 0:01:31.5]} 28. Rg3 {[%clk 0:00:27.9]} 28... g6 {[%clk 0:01:31.2]}
29. Rg5 {[%clk 0:00:28]} 29... f5 {[%clk 0:01:29.7]} 30. h5 {[%clk 0:00:23.5]}
30... Kf6 {[%clk 0:01:28.2]} 31. Rg3 {[%clk 0:00:23.2]} 31... g5 {[%clk
0:01:28.5]} 32. Rh3 {[%clk 0:00:16]} 32... g4 {[%clk 0:01:26.4]} 33. Rhh1 {[%clk
0:00:16]} 33... h6 {[%clk 0:01:26.6]} 34. g3 {[%clk 0:00:16.3]} 34... Rc8 {[%clk
0:01:26]} 35. Rhe1 {[%clk 0:00:10.4]} 35... Rcc5 {[%clk 0:01:25.7]} 36. Rh1
{[%clk 0:00:10.1]} 36... Kg5 {[%clk 0:01:23]} 37. Ke3 {[%clk 0:00:09.5]} 37...
Ra3 {[%clk 0:01:21.5]} 38. Kd2 {[%clk 0:00:09.7]} 38... Rca5 {[%clk 0:01:21.1]}
39. Bb1 {[%clk 0:00:07.8]} 39... R5a4 {[%clk 0:01:20.4]} 40. Kd3 {[%clk
0:00:07.4]} 40... Ra5 {[%clk 0:01:15.2]} 41. Kd2 {[%clk 0:00:05.8]} 41... R3a4
{[%clk 0:01:14.9]} 42. Kd3 {[%clk 0:00:04.9]} 42... Rc5 {[%clk 0:01:15.2]} 43.
Rc1 {[%clk 0:00:02.6]} 43... Raxc4 {[%clk 0:01:14.3]} 44. a3 {[%clk 0:00:03.5]}
44... Re4 {[%clk 0:01:12.7]} 45. Ba2 {[%clk 0:00:04]} 45... Rce5 {[%clk
0:01:09.5]} 46. Rg1 {[%clk 0:00:01.5]} 46... Kxh5 {[%clk 0:01:08.6]} 47. Rh1+
{[%clk 0:00:01.1]} 47... Kg5 {[%clk 0:01:09]} 48. Rag1 {[%clk 0:00:01.9]} 48...
Re2 {[%clk 0:01:06.3]} 49. Bb1 {[%clk 0:00:01.8]} 49... d5 {[%clk 0:01:03.4]}
50. Kd4 {[%clk 0:00:02.1]} 50... h5 {[%clk 0:00:57.1]} 51. Bd3 {[%clk
0:00:02.5]} 51... R2e3 {[%clk 0:00:56.1]} 52. Rf1 {[%clk 0:00:02.2]} 52... a5
{[%clk 0:00:54.1]} 53. a4 {[%clk 0:00:02.6]} 53... Kg6 {[%clk 0:00:53.4]} 54.
Rf2 {[%clk 0:00:01.3]} 54... Re1 {[%clk 0:00:49.2]} 55. Rff1 {[%clk 0:00:01.6]}
55... Rxf1 {[%clk 0:00:30.6]} 56. Rxf1 {[%clk 0:00:02.5]} 56... Kf6 {[%clk
0:00:31.4]} 57. Rh1 {[%clk 0:00:01.5]} 57... h4 {[%clk 0:00:32.1]} 58. Rxh4
{[%clk 0:00:01.2]} 58... Re1 {[%clk 0:00:32]} 59. Rh6+ {[%clk 0:00:01.3]} 59...
Ke7 {[%clk 0:00:32]} 60. Rh7+ {[%clk 0:00:01.7]} 60... Kd6 {[%clk 0:00:32.5]}
61. Rh6 {[%clk 0:00:01.2]} 61... Rd1 {[%clk 0:00:30.6]} 62. Ke3 {[%clk 0:00:01]}
62... Ke5 {[%clk 0:00:30.1]} 0-1

[Event "*** Titled Tuesday Blitz"]
[Site "Chess.com"]
[Date "2020.05.05"]
[Round "4"]
[White "Ariadna_Atreides"]
[Black "SummertimeFun"]
[Result "0-1"]
[WhiteElo "1983"]
[BlackElo "2198"]
[TimeControl "180+1"]
[EndTime "10:41:30 PDT"]
[Termination "SummertimeFun won on time"]

1. d4 {[%clk 0:03:00.9]} 1... Nf6 {[%clk 0:02:48.7]} 2. Nf3 {[%clk 0:03:00.5]}
2... e6 {[%clk 0:02:47.9]} 3. e3 {[%clk 0:02:59.7]} 3... b6 {[%clk 0:02:47.7]}
4. Bd3 {[%clk 0:02:58]} 4... Bb7 {[%clk 0:02:48.1]} 5. O-O {[%clk 0:02:58]} 5...
Be7 {[%clk 0:02:48.6]} 6. b3 {[%clk 0:02:58.1]} 6... O-O {[%clk 0:02:48.5]} 7.
Bb2 {[%clk 0:02:58.6]} 7... d6 {[%clk 0:02:48.2]} 8. Nbd2 {[%clk 0:02:51]} 8...
Nbd7 {[%clk 0:02:48.5]} 9. Qe2 {[%clk 0:02:44.2]} 9... c5 {[%clk 0:02:47.2]} 10.
c4 {[%clk 0:02:42.4]} 10... Rc8 {[%clk 0:02:44.9]} 11. Rac1 {[%clk 0:02:41.5]}
11... d5 {[%clk 0:02:44.3]} 12. cxd5 {[%clk 0:02:37.7]} 12... Nxd5 {[%clk
0:02:45.2]} 13. Ba6 {[%clk 0:02:28.7]} 13... Bxa6 {[%clk 0:02:41.7]} 14. Qxa6
{[%clk 0:02:28.4]} 14... N7f6 {[%clk 0:02:40.6]} 15. a3 {[%clk 0:02:19.4]} 15...
Rc7 {[%clk 0:02:36.4]} 16. dxc5 {[%clk 0:02:12.2]} 16... Bxc5 {[%clk 0:02:32.4]}
17. b4 {[%clk 0:02:12.6]} 17... Bd6 {[%clk 0:02:31.3]} 18. Nc4 {[%clk 0:02:04]}
18... Be7 {[%clk 0:02:29.7]} 19. Be5 {[%clk 0:01:53.3]} 19... Rd7 {[%clk
0:02:26.3]} 20. h3 {[%clk 0:01:32.7]} 20... Nc7 {[%clk 0:02:17.6]} 21. Qxa7
{[%clk 0:01:20.3]} 21... Ncd5 {[%clk 0:02:07.6]} 22. Qa4 {[%clk 0:01:12.5]}
22... Ne4 {[%clk 0:01:58]} 23. Ba1 {[%clk 0:00:47.5]} 23... Bf6 {[%clk
0:01:46.6]} 24. Nce5 {[%clk 0:00:44]} 24... Rc7 {[%clk 0:01:42.8]} 25. Qb3
{[%clk 0:00:23.2]} 25... Qd6 {[%clk 0:01:36.3]} 26. Nc4 {[%clk 0:00:16.2]} 26...
Qe7 {[%clk 0:01:32.7]} 27. Bxf6 {[%clk 0:00:15.1]} 27... Qxf6 {[%clk 0:01:33.5]}
28. b5 {[%clk 0:00:13.3]} 28... Ng5 {[%clk 0:01:32.5]} 29. Nxg5 {[%clk
0:00:12.5]} 29... Qxg5 {[%clk 0:01:33.4]} 30. Nd6 {[%clk 0:00:07.5]} 30... Rd7
{[%clk 0:01:29.7]} 31. Ne4 {[%clk 0:00:04.3]} 31... Qg6 {[%clk 0:01:30.1]} 32.
Ng3 {[%clk 0:00:04.2]} 32... Nf6 {[%clk 0:01:27.8]} 33. Rfd1 {[%clk 0:00:03.9]}
33... Rd2 {[%clk 0:01:26.3]} 34. Rxd2 {[%clk 0:00:03.6]} 34... Ne4 {[%clk
0:01:26.4]} 35. Nxe4 {[%clk 0:00:02.9]} 35... Qxe4 {[%clk 0:01:27.3]} 36. Qc2
{[%clk 0:00:02.5]} 36... Qe5 {[%clk 0:01:25.6]} 37. Rd3 {[%clk 0:00:02.7]} 37...
Qxb5 {[%clk 0:01:25.2]} 38. Rc3 {[%clk 0:00:03.2]} 38... Qa5 {[%clk 0:01:24.7]}
39. Rc8 {[%clk 0:00:03.2]} 39... g6 {[%clk 0:01:19.4]} 40. Rxf8+ {[%clk
0:00:03.7]} 40... Kxf8 {[%clk 0:01:20.3]} 41. Qc8+ {[%clk 0:00:03.7]} 41... Ke7
{[%clk 0:01:20.4]} 42. Qc7+ {[%clk 0:00:03.6]} 42... Kf8 {[%clk 0:01:17.5]} 43.
Qd8+ {[%clk 0:00:03.5]} 43... Kg7 {[%clk 0:01:17.7]} 44. Qd4+ {[%clk 0:00:03.6]}
44... Kh6 {[%clk 0:01:18]} 45. Qf4+ {[%clk 0:00:02.7]} 45... Kg7 {[%clk
0:01:17.8]} 46. Qd4+ {[%clk 0:00:02.7]} 46... e5 {[%clk 0:01:17.8]} 47. Qc3
{[%clk 0:00:02.9]} 47... Qd5 {[%clk 0:01:16.5]} 48. f4 {[%clk 0:00:03.3]} 48...
f6 {[%clk 0:01:10]} 49. fxe5 {[%clk 0:00:03.9]} 49... fxe5 {[%clk 0:01:10.1]}
50. Qc7+ {[%clk 0:00:03.9]} 50... Kh6 {[%clk 0:01:10.7]} 51. Qc6 {[%clk
0:00:04.2]} 51... Qd2 {[%clk 0:01:08.4]} 52. Qc3 {[%clk 0:00:04.2]} 52... Qd5
{[%clk 0:01:07.7]} 53. Kh1 {[%clk 0:00:04.8]} 53... Qe4 {[%clk 0:01:06.3]} 54.
Qc2 {[%clk 0:00:04.5]} 54... Qxe3 {[%clk 0:01:05.5]} 55. Rd1 {[%clk 0:00:03.8]}
55... Qg3 {[%clk 0:01:04.1]} 56. Qd2+ {[%clk 0:00:03.8]} 56... Kg7 {[%clk
0:01:04.3]} 57. Qd7+ {[%clk 0:00:03.9]} 57... Kh6 {[%clk 0:01:04.5]} 58. Qd6
{[%clk 0:00:03.8]} 58... Qb3 {[%clk 0:01:01.1]} 59. Qd3 {[%clk 0:00:03.1]} 59...
Qe6 {[%clk 0:01:00]} 60. Qd2+ {[%clk 0:00:02.9]} 60... Kg7 {[%clk 0:00:59.6]}
61. Rc1 {[%clk 0:00:03.3]} 61... e4 {[%clk 0:00:58.5]} 62. Rc7+ {[%clk 0:00:03]}
62... Kf6 {[%clk 0:00:58.8]} 63. Qd8+ {[%clk 0:00:02.3]} 63... Ke5 {[%clk
0:00:57.3]} 64. Qh8+ {[%clk 0:00:01.8]} 64... Kf4 {[%clk 0:00:57]} 65. Qg7
{[%clk 0:00:02.3]} 65... e3 {[%clk 0:00:56.5]} 66. Rf7+ {[%clk 0:00:02]} 66...
Kg3 {[%clk 0:00:56.3]} 67. Kg1 {[%clk 0:00:01.4]} 67... e2 {[%clk 0:00:56.4]}
68. Qc3+ {[%clk 0:00:01.5]} 68... Kh4 {[%clk 0:00:55.7]} 69. Qb4+ {[%clk
0:00:01.4]} 69... Kh5 {[%clk 0:00:55]} 70. Qb5+ {[%clk 0:00:01.5]} 70... Kh6
{[%clk 0:00:54.7]} 0-1

[Event "*** Titled Tuesday Blitz"]
[Site "Chess.com"]
[Date "2020.05.05"]
[Round "4"]
[White "AryanTari"]
[Black "Artem_Sadovsky"]
[Result "1-0"]
[WhiteElo "2873"]
[BlackElo "2542"]
[TimeControl "180+1"]
[EndTime "10:41:33 PDT"]
[Termination "AryanTari won on time"]

1. e4 {[%clk 0:03:00.9]} 1... g6 {[%clk 0:02:59.7]} 2. d4 {[%clk 0:03:00.7]}
2... Bg7 {[%clk 0:03:00.3]} 3. Nf3 {[%clk 0:03:01.2]} 3... d6 {[%clk 0:02:59.8]}
4. Bc4 {[%clk 0:03:01.8]} 4... e6 {[%clk 0:02:57.1]} 5. O-O {[%clk 0:03:01.5]}
5... Ne7 {[%clk 0:02:57.2]} 6. Re1 {[%clk 0:03:02.1]} 6... a6 {[%clk 0:02:54.4]}
7. Bb3 {[%clk 0:03:01.7]} 7... b6 {[%clk 0:02:53.9]} 8. Nbd2 {[%clk 0:03:00.6]}
8... Bb7 {[%clk 0:02:53]} 9. Nf1 {[%clk 0:03:00.9]} 9... h6 {[%clk 0:02:51.9]}
10. Ng3 {[%clk 0:03:01.3]} 10... Nd7 {[%clk 0:02:52.2]} 11. h4 {[%clk
0:03:00.6]} 11... c5 {[%clk 0:02:33.4]} 12. c3 {[%clk 0:03:00.7]} 12... Qc7
{[%clk 0:02:32.1]} 13. Be3 {[%clk 0:02:55.5]} 13... c4 {[%clk 0:02:25.6]} 14.
Bc2 {[%clk 0:02:54.9]} 14... d5 {[%clk 0:02:26.5]} 15. e5 {[%clk 0:02:52.2]}
15... Nf5 {[%clk 0:02:26.9]} 16. Nxf5 {[%clk 0:02:41]} 16... gxf5 {[%clk
0:02:26.1]} 17. Qd2 {[%clk 0:02:39.2]} 17... Bc6 {[%clk 0:02:16.9]} 18. b3
{[%clk 0:02:26.4]} 18... b5 {[%clk 0:02:13.1]} 19. Bf4 {[%clk 0:02:18.5]} 19...
Nb6 {[%clk 0:01:58.7]} 20. Bxf5 {[%clk 0:01:40.6]} 20... exf5 {[%clk 0:01:55.5]}
21. e6 {[%clk 0:01:41.5]} 21... Qb7 {[%clk 0:01:46.8]} 22. Qc2 {[%clk 0:01:29]}
22... O-O {[%clk 0:01:37.4]} 23. Qxf5 {[%clk 0:01:03.1]} 23... Rae8 {[%clk
0:01:18.3]} 24. Qg4 {[%clk 0:00:41.6]} 24... Rxe6 {[%clk 0:00:54.3]} 25. Rxe6
{[%clk 0:00:40.5]} 25... fxe6 {[%clk 0:00:55.2]} 26. Bxh6 {[%clk 0:00:39.7]}
26... Be8 {[%clk 0:00:43.1]} 27. Bxg7 {[%clk 0:00:36.4]} 27... Qxg7 {[%clk
0:00:42.9]} 28. Qxe6+ {[%clk 0:00:36.5]} 28... Kh8 {[%clk 0:00:40.6]} 29. Ng5
{[%clk 0:00:32.7]} 29... Qf6 {[%clk 0:00:39.8]} 30. Qe3 {[%clk 0:00:21.3]} 30...
Bg6 {[%clk 0:00:39.7]} 31. Qg3 {[%clk 0:00:18.3]} 31... Qf4 {[%clk 0:00:35.9]}
32. Qxf4 {[%clk 0:00:16.4]} 32... Rxf4 {[%clk 0:00:36.8]} 33. g3 {[%clk
0:00:16.9]} 33... Rf6 {[%clk 0:00:36.1]} 34. Re1 {[%clk 0:00:17.4]} 34... Rc6
{[%clk 0:00:35.3]} 35. b4 {[%clk 0:00:14.4]} 35... Na4 {[%clk 0:00:35.4]} 36.
Re3 {[%clk 0:00:15.1]} 36... Bd3 {[%clk 0:00:35]} 37. h5 {[%clk 0:00:12.3]}
37... Nxc3 {[%clk 0:00:32.9]} 38. h6 {[%clk 0:00:12.6]} 38... Rc8 {[%clk
0:00:28]} 39. Re7 {[%clk 0:00:10.3]} 39... Ne2+ {[%clk 0:00:28]} 40. Kg2 {[%clk
0:00:10.2]} 40... c3 {[%clk 0:00:28.4]} 41. Nf7+ {[%clk 0:00:08]} 41... Kg8
{[%clk 0:00:24.3]} 42. Ne5 {[%clk 0:00:06.3]} 42... Be4+ {[%clk 0:00:22.8]} 43.
f3 {[%clk 0:00:06.5]} 43... c2 {[%clk 0:00:21.9]} 44. Rg7+ {[%clk 0:00:06.8]}
44... Kf8 {[%clk 0:00:21]} 45. Nd7+ {[%clk 0:00:07.1]} 45... Ke8 {[%clk
0:00:20.4]} 46. Nf6+ {[%clk 0:00:07.7]} 46... Kf8 {[%clk 0:00:20.8]} 47. Rg8+
{[%clk 0:00:06.5]} 47... Kf7 {[%clk 0:00:20.7]} 48. Rxc8 {[%clk 0:00:07.1]}
48... Kxf6 {[%clk 0:00:10.2]} 49. fxe4 {[%clk 0:00:06.4]} 49... c1=Q {[%clk
0:00:09.2]} 50. Rxc1 {[%clk 0:00:07]} 50... Nxc1 {[%clk 0:00:10.1]} 51. e5+
{[%clk 0:00:07.6]} 51... Kg6 {[%clk 0:00:09.5]} 52. e6 {[%clk 0:00:08.1]} 52...
Ne2 {[%clk 0:00:04.4]} 53. e7 {[%clk 0:00:08.1]} 1-0

[Event "*** Titled Tuesday Blitz"]
[Site "Chess.com"]
[Date "2020.05.05"]
[Round "4"]
[White "woodhy"]
[Black "doons21"]
[Result "1/2-1/2"]
[WhiteElo "2408"]
[BlackElo "2609"]
[TimeControl "180+1"]
[EndTime "10:41:33 PDT"]
[Termination "Game drawn by repetition"]

1. e4 {[%clk 0:03:00.9]} 1... e6 {[%clk 0:02:59.8]} 2. d4 {[%clk 0:02:59.6]}
2... d5 {[%clk 0:03:00.2]} 3. e5 {[%clk 0:03:00]} 3... c5 {[%clk 0:02:59.9]} 4.
c3 {[%clk 0:03:00.2]} 4... Qb6 {[%clk 0:03:00.4]} 5. Nf3 {[%clk 0:02:56.5]} 5...
Nc6 {[%clk 0:03:00.8]} 6. Be2 {[%clk 0:02:51.7]} 6... cxd4 {[%clk 0:02:53.8]} 7.
cxd4 {[%clk 0:02:51.5]} 7... Nh6 {[%clk 0:02:54.1]} 8. b3 {[%clk 0:02:51.5]}
8... Nf5 {[%clk 0:02:51.6]} 9. Bb2 {[%clk 0:02:51.3]} 9... Bb4+ {[%clk
0:02:51.8]} 10. Kf1 {[%clk 0:02:51.3]} 10... Be7 {[%clk 0:02:47.9]} 11. g3
{[%clk 0:02:46.2]} 11... h5 {[%clk 0:02:41.7]} 12. h4 {[%clk 0:02:43.9]} 12...
Bd7 {[%clk 0:02:36.2]} 13. Kg2 {[%clk 0:02:42.2]} 13... Rc8 {[%clk 0:02:34]} 14.
Nc3 {[%clk 0:02:38.8]} 14... Qa5 {[%clk 0:01:53.8]} 15. a3 {[%clk 0:02:07]}
15... g6 {[%clk 0:01:45.3]} 16. b4 {[%clk 0:02:02.2]} 16... Qd8 {[%clk
0:01:45.5]} 17. Rc1 {[%clk 0:01:54.1]} 17... a6 {[%clk 0:01:36]} 18. Na4 {[%clk
0:01:53.1]} 18... Kf8 {[%clk 0:01:34]} 19. Nc5 {[%clk 0:01:52]} 19... Bxc5
{[%clk 0:01:33.7]} 20. Rxc5 {[%clk 0:01:49]} 20... Na7 {[%clk 0:01:32.6]} 21.
Qc2 {[%clk 0:01:25]} 21... Kg7 {[%clk 0:01:20.5]} 22. Rc1 {[%clk 0:01:04.5]}
22... Bb5 {[%clk 0:01:04.3]} 23. Bxb5 {[%clk 0:00:36.5]} 23... axb5 {[%clk
0:01:03.1]} 24. a4 {[%clk 0:00:17.4]} 24... b6 {[%clk 0:00:49.4]} 25. Rxc8
{[%clk 0:00:16.1]} 25... Qxc8 {[%clk 0:00:48.4]} 26. a5 {[%clk 0:00:14.5]} 26...
bxa5 {[%clk 0:00:31.6]} 27. bxa5 {[%clk 0:00:14.7]} 27... Qa6 {[%clk 0:00:31.6]}
28. Qc7 {[%clk 0:00:13.3]} 28... Nc8 {[%clk 0:00:17.3]} 29. Ng5 {[%clk
0:00:12.4]} 29... Nce7 {[%clk 0:00:17.2]} 30. Ba3 {[%clk 0:00:10]} 30... Rc8
{[%clk 0:00:17.4]} 31. Qb6 {[%clk 0:00:08.8]} 31... Ra8 {[%clk 0:00:16.8]} 32.
Qxa6 {[%clk 0:00:06.8]} 32... Rxa6 {[%clk 0:00:16.5]} 33. Bxe7 {[%clk
0:00:06.2]} 33... Nxe7 {[%clk 0:00:16.7]} 34. Rc7 {[%clk 0:00:07]} 34... Kf8
{[%clk 0:00:16.6]} 35. Rb7 {[%clk 0:00:07.1]} 35... Rxa5 {[%clk 0:00:16.6]} 36.
Nh7+ {[%clk 0:00:07.5]} 36... Kg7 {[%clk 0:00:15.4]} 37. Rxe7 {[%clk 0:00:06.9]}
37... Kxh7 {[%clk 0:00:15.8]} 38. Rxf7+ {[%clk 0:00:07.3]} 38... Kh6 {[%clk
0:00:15.5]} 39. Re7 {[%clk 0:00:07.7]} 39... Ra6 {[%clk 0:00:15]} 40. Rb7 {[%clk
0:00:07.9]} 40... Ra5 {[%clk 0:00:15.4]} 41. Rb6 {[%clk 0:00:08.1]} 41... Ra4
{[%clk 0:00:15.7]} 42. Rxe6 {[%clk 0:00:08.2]} 42... Rxd4 {[%clk 0:00:16]} 43.
Rb6 {[%clk 0:00:09.1]} 43... Re4 {[%clk 0:00:15.4]} 44. f4 {[%clk 0:00:08.8]}
44... b4 {[%clk 0:00:15.1]} 45. Rb5 {[%clk 0:00:09.1]} 45... Rd4 {[%clk
0:00:15.1]} 46. Kf3 {[%clk 0:00:08.2]} 46... Kg7 {[%clk 0:00:15.1]} 47. Rb7+
{[%clk 0:00:07.5]} 47... Kf8 {[%clk 0:00:15]} 48. e6 {[%clk 0:00:08.4]} 48...
Re4 {[%clk 0:00:14.1]} 49. e7+ {[%clk 0:00:08.7]} 49... Rxe7 {[%clk 0:00:14.2]}
50. Rxb4 {[%clk 0:00:08.6]} 50... Kf7 {[%clk 0:00:14.2]} 51. Rd4 {[%clk
0:00:08.5]} 51... Rd7 {[%clk 0:00:13.8]} 52. Ke3 {[%clk 0:00:09]} 52... Ke6
{[%clk 0:00:14.3]} 53. Kf3 {[%clk 0:00:09.2]} 53... Ra7 {[%clk 0:00:14]} 54. Rd3
{[%clk 0:00:09]} 54... Ra4 {[%clk 0:00:14.1]} 55. Re3+ {[%clk 0:00:09.3]} 55...
Kd6 {[%clk 0:00:14.6]} 56. Rb3 {[%clk 0:00:10.1]} 56... Ra6 {[%clk 0:00:13.9]}
57. Ke3 {[%clk 0:00:09.8]} 57... Kc5 {[%clk 0:00:13.8]} 58. Rc3+ {[%clk
0:00:09.4]} 58... Kd6 {[%clk 0:00:14.2]} 59. Rb3 {[%clk 0:00:09.2]} 59... Rc6
{[%clk 0:00:13.8]} 60. Kd3 {[%clk 0:00:08.2]} 60... Ra6 {[%clk 0:00:13.9]} 61.
Ke3 {[%clk 0:00:08.3]} 1/2-1/2